bitfinex/quotes_ETHUSD_20250824
["timestamp","ask_amount","ask_price","bid_price","bid_amount"]
[1756064246677,30.0,4757.0,4756.2,1.08487529]
[1756064246883,2.10231673,4756.7,4756.1,0.04]
[1756064247224,30.0,4757.0,4756.1,0.04]
[1756064247225,29.94881265,4756.6,4756.1,0.04]
[1756064247343,29.42009654,4756.3,4751.8,1.08535881]
[1756064247674,29.42009654,4756.3,4752.8,0.4489]
[1756064248176,22.41851224,4756.2,4754.2,1.00545577]
[1756064248377,2.10335906,4754.3,4754.2,1.00545577]
[1756064248579,0.39419402,4756.2,4754.2,1.45435577]
[1756064248741,0.39419402,4756.2,4754.4,1.0865575]
[1756064248946,0.04,4759.4,4754.6,1.01212324]
[1756064249148,0.04,4759.4,4754.8,4.05381842]
[1756064249343,0.04,4759.4,4754.7,1.02447013]
[1756064249586,0.04,4759.4,4754.8,16.390391]
[1756064249793,0.04,4757.4,4755.8,1.08115941]
[1756064249948,5.045,4762.7,4755.8,1.08115941]
[1756064249949,1.614,4761.0,4755.8,1.08115941]
[1756064250150,35.045,4760.3,4755.2,1.04549072]
[1756064250375,35.045,4760.3,4755.1,0.004]
[1756064250376,30.0,4755.2,4755.1,1.03324204]
[1756064250582,0.4283,4760.2,4755.1,1.03324204]
[1756064250583,5.047,4756.9,4755.1,0.004]
[1756064250760,5.047,4758.6,4755.2,1.09439396]
[1756064250969,30.0,4758.5,4756.1,0.004]
[1756064251169,30.0,4760.2,4756.1,0.004]
[1756064251370,30.0,4759.4,4754.2,1.02466093]
[1756064251569,30.4283,4759.3,4754.2,1.02466093]
[1756064251747,30.0,4759.2,4754.2,1.02466093]
[1756064252082,28.0697,4759.4,4754.4,1.03385413]
[1756064252245,0.04,4761.4,4755.4,1.02477607]
[1756064252448,0.04,4761.4,4757.1,0.04]
[1756064252646,0.04,4761.4,4757.9,0.5]
[1756064252849,0.04,4761.4,4757.2,0.4489]
[1756064253099,0.04,4761.4,4757.7,0.32005874]
[1756064253298,0.04,4761.4,4758.1,0.01]
[1756064253582,0.04,4761.4,4758.2,0.90500595]
[1756064253745,30.4283,4761.3,4758.2,0.48880595]
[1756064253948,0.49,4761.1,4757.1,0.4889]
[1756064254582,0.49,4759.8,4757.1,0.04]
[1756064254751,0.49,4757.2,4757.1,0.04]
[1756064254951,0.49,4760.4,4757.2,0.446]
[1756064255284,0.52607656,4761.7,4757.9,2.10175741]
[1756064255446,0.04,4762.4,4759.3,1.16895106]
[1756064255647,0.04,4762.4,4759.5,3.0]
[1756064255850,0.38715547,4765.9,4759.7,0.01]
[1756064256165,0.49,4765.1,4759.5,3.0]
[1756064256477,0.49,4764.3,4759.6,1.615]
[1756064256683,0.491,4765.9,4760.2,10.43997402]
[1756064257007,0.491,4765.9,4760.3,3.0]
[1756064257008,0.69089097,4764.7,4760.3,3.0]
[1756064257175,0.491,4765.9,4759.6,1.615]
[1756064257176,0.69089097,4764.9,4759.6,1.615]
[1756064257347,0.69089097,4763.5,4759.6,1.4723]
[1756064257549,0.49,4760.9,4758.1,0.04]
[1756064257753,0.49,4761.6,4759.1,0.04]
[1756064257955,0.00161,4760.9,4759.1,0.04]
[1756064258169,0.69089097,4762.9,4762.1,0.03839]
[1756064258452,1.34522159,4762.8,4762.1,0.03839]
[1756064258681,30.0,4762.7,4761.1,0.04]
[1756064258867,0.66019976,4761.4,4761.1,0.04]
[1756064259065,0.99029964,4762.5,4761.2,5.049]
[1756064259249,4.03650551,4763.7,4761.2,5.049]
[1756064259250,0.99029964,4762.6,4761.3,2.65573947]
[1756064259446,0.99029964,4762.3,4761.3,2.65573947]
[1756064259669,1.32032551,4761.9,4761.3,1.89760712]
[1756064259952,1.66932294,4762.6,4759.5,5.048]
[1756064260162,0.99536236,4762.5,4760.5,10.43997402]
[1756064260361,3.36254493,4764.5,4760.6,2.111884]
[1756064260548,0.45,4766.5,4759.9,1.615]
[1756064260549,0.4283,4766.5,4759.9,1.615]
[1756064260761,0.1048,4764.4,4760.2,2.714475]
[1756064261094,0.04,4764.4,4763.5,10.43997402]
[1756064261306,0.04,4764.4,4763.6,5.048]
[1756064261465,0.04,4764.4,4763.5,10.43997402]
[1756064261466,0.04,4764.4,4763.7,1.615]
[1756064261782,0.04,4765.4,4764.4,11.762297]
[1756064261783,0.0292,4765.4,4764.4,11.762297]
[1756064261987,0.04,4767.4,4765.4,30.0]
[1756064262284,3.38629992,4771.3,4766.8,3.0]
[1756064262285,4.38954825,4771.2,4766.8,3.0]
[1756064262483,4.38954825,4771.2,4767.8,10.43997402]
[1756064262649,7.27966699,4770.9,4768.1,1.615]
[1756064262954,7.27966699,4770.9,4768.7,10.43997402]
[1756064263148,5.36110368,4770.7,4770.3,1.615]
[1756064263381,9.75065193,4770.7,4770.4,22.88732439]
[1756064263606,7.63065193,4770.7,4770.5,30.0]
[1756064263796,1.00634584,4772.4,4770.6,9.93761495]
[1756064264108,1.67724307,4772.4,4772.3,12.05497402]
[1756064264394,3.36815581,4775.5,4772.4,0.26209039]
[1756064264685,0.04,4779.4,4772.4,0.26209039]
[1756064264686,0.04,4779.4,4775.3,10.43997402]
[1756064264889,0.04,4779.4,4777.3,15.53320659]
[1756064264890,0.01419809,4777.4,4777.3,15.53320659]
[1756064265183,0.04,4782.4,4777.5,0.01419809]
[1756064265400,0.04,4782.4,4782.1,2.09109752]
[1756064265562,0.4484,4789.5,4783.3,9.41505128]
[1756064265887,0.69099119,4791.1,4784.4,3.0]
[1756064266074,0.69099119,4791.1,4786.3,10.43997402]
[1756064266277,0.4484,4790.6,4784.5,0.26209039]
[1756064266446,0.69099119,4791.1,4785.0,0.66]
[1756064266782,0.4484,4790.0,4785.1,2.211245]
[1756064266945,0.4484,4789.3,4784.9,1.613]
[1756064267154,0.69099119,4791.1,4787.7,3.66]
[1756064267452,0.69099119,4791.1,4784.4,31.63855074]
[1756064267453,0.04,4791.4,4787.9,3.0]
[1756064267652,0.04,4791.4,4788.6,0.66]
[1756064267894,0.04,4791.4,4788.7,8.071466]
[1756064268104,0.04,4791.4,4788.9,3.0]
[1756064268383,0.04,4791.4,4789.1,2.71053277]
[1756064268586,0.04,4791.4,4784.1,0.04]
[1756064268761,0.04,4791.4,4786.4,10.37669752]
[1756064268951,0.04,4791.4,4786.5,9.57551006]
[1756064269151,0.04,4791.4,4788.4,0.66]
[1756064269399,0.04,4791.4,4788.5,22.633857]
[1756064269552,0.04,4791.4,4788.5,1.611]
[1756064269751,0.04,4791.4,4788.6,2.409874]
[1756064269949,0.04,4791.4,4788.6,3.022029]
[1756064270148,0.04,4791.4,4788.7,10.37669752]
[1756064270352,0.04,4791.4,4788.8,14.491464]
[1756064270589,0.04,4791.4,4788.9,1.611]
[1756064270764,0.04,4791.4,4789.1,3.0]
[1756064271084,0.04,4791.4,4789.4,0.66]
[1756064271289,0.04,4791.4,4787.6,60.0]
[1756064271588,0.04,4791.4,4783.1,1.11988825]
[1756064271589,0.04,4791.4,4787.7,1.609]
[1756064271888,0.4484,4790.3,4786.1,0.04]
[1756064272063,0.04,4791.4,4786.5,5.7944]
[1756064272263,0.04,4791.4,4788.9,10.37669752]
[1756064272463,0.04,4791.4,4789.0,3.145154]
[1756064272666,0.04,4791.4,4789.0,1.609]
[1756064273197,0.04,4791.4,4789.1,7.242734]
[1756064273501,0.04,4791.4,4789.2,3.0]
[1756064273791,0.04,4791.4,4789.6,3.0]
[1756064273967,0.04,4791.4,4789.9,3.0]
[1756064274171,0.4884,4795.4,4791.3,33.24755074]
[1756064274172,0.04,4795.4,4791.3,33.24755074]
[1756064274489,0.04,4801.4,4795.4,0.01092074]
[1756064274490,0.4484,4799.1,4795.4,0.01092074]
[1756064274692,0.4484,4799.1,4795.5,1.607]
[1756064274893,0.4484,4799.1,4795.6,3.500723]
[1756064275093,0.10754166,4800.6,4795.4,0.01092074]
[1756064275094,0.4484,4799.0,4795.4,0.01092074]
[1756064275391,0.04,4800.4,4795.6,3.0]
[1756064275589,0.04,4800.4,4795.8,3.0]
[1756064275889,0.4484,4798.9,4796.0,3.0]
[1756064276091,0.04,4800.4,4795.4,0.01092074]
[1756064276291,0.4484,4797.3,4795.4,0.01092074]
[1756064276492,0.5,4796.7,4790.4,10.37669752]
[1756064276692,30.4484,4796.6,4791.1,0.04]
[1756064276997,0.5,4794.4,4793.1,0.04]
[1756064277172,0.5,4788.2,4784.8,1.05682236]
[1756064277370,0.46,4790.2,4784.7,1.04976335]
[1756064277581,0.46,4793.9,4789.0,10.37669752]
[1756064277766,0.46,4793.9,4788.2,31.7969]
[1756064277767,0.4484,4794.6,4789.1,7.107038]
[1756064277968,0.4484,4794.5,4787.6,1.606]
[1756064278161,0.04418593,4792.2,4787.6,1.606]
[1756064278357,0.04418593,4790.3,4787.1,0.04]
[1756064278561,30.4484,4790.2,4787.1,0.04]
[1756064278814,1.606,4791.7,4787.1,0.04]
[1756064278815,0.04418593,4788.2,4787.1,0.04]
[1756064279095,0.4484,4790.1,4787.1,0.04]
[1756064279268,0.04418593,4788.5,4787.1,0.04]
[1756064279473,0.04418593,4785.2,4783.8,1.01442478]
[1756064279672,0.04418593,4785.2,4783.1,0.04]
[1756064279673,0.04418593,4785.2,4783.9,1.00830231]
[1756064279879,0.4484,4787.3,4783.1,0.04]
[1756064280076,10.37669752,4791.6,4783.1,0.04]
[1756064280077,0.4484,4788.3,4784.1,1.646]
[1756064280276,3.04418593,4788.1,4784.1,0.04]
[1756064280593,0.04418593,4790.0,4784.2,13.408615]
[1756064280761,0.04418593,4792.3,4785.5,1.606]
[1756064280962,0.4484,4791.3,4785.6,31.143937]
[1756064281197,0.04418593,4787.6,4785.7,29.9713159]
[1756064281411,4.6,4791.2,4782.2,1.10618482]
[1756064281412,0.04418593,4786.0,4782.2,1.10618482]
[1756064281619,0.04418593,4787.5,4784.2,0.053]
[1756064281918,0.0346,4788.4,4785.5,2.08962839]
[1756064282130,0.0054,4787.4,4785.6,13.84164221]
[1756064282426,0.1048,4789.1,4785.9,1.606]
[1756064282718,0.04,4790.4,4786.0,16.75828921]
[1756064282919,0.04,4790.4,4784.1,0.0384]
[1756064282920,0.04418593,4786.1,4784.1,0.0384]
[1756064283215,0.04418593,4786.1,4778.1,1.86488208]
[1756064283216,5.02727712,4786.0,4780.8,1.606]
[1756064283422,5.02727712,4786.0,4778.1,0.04]
[1756064283423,0.42727712,4786.0,4780.1,0.5139]
[1756064283617,0.42727712,4786.0,4785.8,0.68730869]
[1756064283817,0.3003,4786.0,4785.9,0.41238521]
[1756064284034,0.39621046,4787.3,4785.9,1.37461738]
[1756064284184,4.599,4790.5,4787.1,0.51533539]
[1756064284382,0.3003,4790.3,4787.4,0.51533539]
[1756064284689,0.3003,4791.3,4787.1,1.605]
[1756064284889,0.3003,4793.2,4787.2,5.645736]
[1756064285090,0.041,4791.4,4787.4,3.0]
[1756064285279,0.041,4791.4,4787.6,3.0]
[1756064285481,0.041,4791.4,4787.3,0.4302]
[1756064285711,0.041,4791.4,4787.1,1.645]
[1756064285712,0.041,4791.4,4787.1,1.605]
[1756064285881,0.041,4791.4,4787.3,3.0]
[1756064286082,0.3803,4790.3,4787.1,0.04]
[1756064286417,30.0,4787.1,4786.3,0.49533539]
[1756064286619,0.2803,4788.4,4785.9,0.68711386]
[1756064286780,34.598,4788.3,4785.3,1.37461738]
[1756064286979,30.0,4785.3,4785.1,0.04]
[1756064287216,3.0,4785.0,4782.3,3.64976416]
[1756064287380,3.0,4784.8,4782.3,3.64976416]
[1756064287579,39.16227903,4784.7,4782.3,1.39717534]
[1756064287792,4.598,4786.6,4779.4,0.4739]
[1756064288021,30.0,4786.5,4784.1,0.04]
[1756064288180,30.0,4787.0,4784.1,0.04]
[1756064288379,3.0,4787.4,4784.1,0.04]
[1756064288616,1.1,4786.2,4784.1,0.04]
[1756064288823,30.0,4786.1,4784.1,0.04]
[1756064289037,0.04,4788.4,4784.1,0.04]
[1756064289256,30.0,4788.3,4784.1,0.04]
[1756064289387,0.04,4788.4,4784.1,0.04]
[1756064289388,0.04,4788.4,4784.3,3.0]
[1756064289712,0.04,4787.4,4785.5,1.606]
[1756064289913,1.606,4796.2,4785.8,0.5]
[1756064290117,0.1122,4796.9,4787.9,1.606]
[1756064290316,0.04,4797.4,4789.7,1.606]
[1756064290620,0.1942,4795.3,4789.8,1.606]
[1756064290930,30.1942,4793.3,4785.7,0.4684]
[1756064291133,4.6,4794.0,4783.6,0.4739]
[1756064291134,0.5,4791.2,4783.6,0.4739]
[1756064291433,30.79945762,4793.2,4782.7,1.606]
[1756064291434,1.606,4792.3,4784.2,2.762454]
[1756064291640,0.39615197,4793.2,4787.2,0.05]
[1756064291947,0.39615197,4793.2,4787.6,0.05]
[1756064292136,0.39615197,4793.2,4788.4,0.05]
[1756064292287,0.39615197,4793.2,4789.6,0.05]
[1756064292630,0.39615197,4793.2,4787.7,6.31110249]
[1756064292631,0.104,4792.2,4791.4,0.05]
[1756064292923,0.04,4793.4,4791.4,0.05]
[1756064293126,0.04,4793.4,4791.6,3.0]
[1756064293281,0.04,4793.4,4791.8,3.0]
[1756064293480,0.04,4793.4,4792.5,0.05]
[1756064293681,0.04,4795.4,4793.5,3.0]
[1756064293927,0.04,4795.4,4794.2,0.05]
[1756064294223,0.04,4795.4,4793.7,3.0]
[1756064294224,0.04,4799.4,4797.0,0.05]
[1756064294386,0.04,4799.4,4798.0,0.01]
[1756064294742,0.04,4799.4,4797.2,0.01]
[1756064295039,0.04,4799.4,4796.4,3.1324]
[1756064295332,0.04,4799.4,4796.6,3.0]
[1756064295498,0.04,4799.4,4796.7,0.01]
[1756064295699,0.04,4799.4,4796.6,0.01]
[1756064295895,4.9864,4799.3,4794.9,0.01]
[1756064296141,4.9864,4799.3,4794.2,0.01]
[1756064296288,0.50264,4799.2,4795.0,0.0466]
[1756064296485,0.04,4799.4,4795.6,0.01]
[1756064296791,0.04,4799.4,4795.1,0.04]
[1756064297035,0.04,4799.4,4796.1,0.04]
[1756064297392,0.04,4799.4,4796.2,0.1575]
[1756064297638,0.04,4799.4,4796.2,3.47144]
[1756064297801,0.04,4799.4,4796.3,0.351144]
[1756064297984,1.1,4799.0,4796.1,0.04]
[1756064298190,0.04,4799.4,4796.1,0.04]
[1756064298488,30.3894,4799.3,4796.1,0.04]
[1756064298686,0.04,4799.4,4796.1,0.04]
[1756064298888,0.04,4799.4,4796.2,2.1459]
[1756064299126,0.04,4799.4,4796.3,0.21859]
[1756064299292,0.04,4799.4,4796.1,0.04]
[1756064299729,30.0,4799.3,4796.1,0.04]
[1756064299903,0.3894,4799.3,4796.1,0.04]
[1756064300224,0.20875131,4800.0,4796.8,3.0]
[1756064300401,0.13945131,4800.0,4797.0,3.0]
[1756064300729,0.13945131,4800.0,4797.2,3.0]
[1756064300888,0.001,4800.3,4797.3,0.1319]
[1756064301088,0.001,4800.3,4797.4,3.77269]
[1756064301289,0.0374,4800.4,4797.6,3.0]
[1756064301499,0.16192672,4800.4,4797.4,0.77269]
[1756064301732,0.0374,4800.4,4795.0,0.0029]
[1756064301942,0.0374,4800.4,4796.2,0.0033]
[1756064302222,0.12452672,4800.3,4796.3,3.0]
[1756064302433,0.12452672,4800.3,4796.5,3.0]
[1756064302591,0.0374,4800.4,4797.1,0.04]
[1756064302793,0.0374,4800.4,4800.3,0.104]
[1756064303150,4.634,4805.4,4800.3,0.0205]
[1756064303151,1.47,4805.0,4800.3,0.0205]
[1756064303295,1.47,4802.6,4799.3,3.0]
[1756064303601,0.151,4802.3,4798.3,0.0009]
[1756064304008,0.12452672,4802.0,4798.6,2.85892121]
[1756064304217,30.0,4801.9,4798.6,2.85892121]
[1756064304388,3.4282,4801.8,4797.9,1.83568621]
[1756064304617,31.8972,4801.7,4797.4,1.83568621]
[1756064304794,30.0,4801.6,4797.5,0.44456469]
[1756064305089,0.4282,4801.6,4797.1,0.04]
[1756064305324,3.0,4801.5,4798.1,0.04]
[1756064305506,3.0,4801.3,4799.1,0.04]
[1756064305837,3.0,4799.0,4798.1,0.04]
[1756064306033,1.38556024,4798.9,4797.1,0.04]
[1756064306190,2.79638799,4798.7,4796.4,2.5699607]
[1756064306391,30.0,4796.4,4794.6,4.77278416]
[1756064306596,4.592,4796.3,4794.4,0.004]
[1756064306792,30.0,4795.1,4794.4,0.004]
[1756064307028,29.72587465,4795.1,4791.1,0.04]
[1756064307203,29.72587465,4795.1,4790.9,4.77278416]
[1756064307204,29.72587465,4795.1,4790.9,4.45160682]
[1756064307630,10.37669752,4794.3,4790.9,4.45160682]
[1756064307792,29.72587465,4794.2,4789.7,3.67137243]
[1756064308000,1.469,4794.1,4789.7,3.67137243]
[1756064308507,4.592,4793.7,4789.5,3.67137243]
[1756064308826,31.469,4793.6,4789.5,3.67137243]
[1756064309036,1.469,4793.6,4789.8,0.4616]
[1756064309195,1.469,4793.6,4789.5,3.67137243]
[1756064309196,0.01257054,4794.6,4790.2,0.4612]
[1756064309395,30.0,4794.5,4790.2,0.4612]
[1756064309592,0.04,4793.4,4790.2,0.4612]
[1756064309804,0.04,4793.4,4790.3,0.71725724]
[1756064310004,0.04,4793.4,4790.2,0.4612]
[1756064310724,0.04,4793.4,4790.4,3.0]
[1756064311034,1.06545375,4797.1,4790.3,4.757348]
[1756064311035,1.47,4798.5,4791.4,1.00314027]
[1756064311196,1.47,4798.5,4791.5,30.4661]
[1756064311397,0.04,4799.4,4790.4,0.15482316]
[1756064311398,0.04,4799.4,4793.7,10.37669752]
[1756064311612,0.15888457,4803.1,4797.4,3.0]
[1756064311613,0.19107398,4802.3,4797.4,3.0]
[1756064311811,1.03436098,4802.1,4797.5,31.85563088]
[1756064312036,1.03436098,4801.9,4797.7,2.9925]
[1756064312330,2.41350895,4804.1,4797.7,2.9925]
[1756064312331,1.03436098,4804.2,4798.8,10.37669752]
[1756064312631,1.03436098,4804.7,4798.9,23.00462696]
[1756064312930,1.03436098,4804.8,4799.0,30.0]
[1756064313131,1.41914797,4805.4,4799.0,30.0]
[1756064313132,1.03436098,4804.9,4803.4,4.011736]
[1756064313293,1.03436098,4804.8,4802.5,1.469]
[1756064313495,1.07547701,4805.4,4802.6,31.469]
[1756064313725,0.04,4805.4,4802.7,17.43913463]
[1756064313928,0.04,4805.4,4802.8,26.159189]
[1756064314293,0.04,4805.4,4798.9,1.03766975]
[1756064314294,0.04,4805.4,4800.0,2.08333333]
[1756064314498,0.04,4805.4,4801.5,1.00677535]
[1756064314692,0.04,4805.4,4802.1,3.0]
[1756064314952,0.04,4805.4,4803.5,2.08178167]
[1756064315247,0.04,4805.4,4802.3,3.0]
[1756064315248,0.04,4805.4,4804.1,2.08151563]
[1756064315400,0.04,4805.4,4804.3,3.0]
[1756064315599,0.04,4805.4,4803.6,1.469]
[1756064315942,0.04,4805.4,4802.2,1.87366105]
[1756064316235,0.04,4805.4,4802.7,3.0]
[1756064316434,0.04,4806.4,4803.0,1.08717112]
[1756064316741,0.04,4806.4,4804.1,10.37669752]
[1756064316944,0.51749061,4808.2,4805.7,3.0]
[1756064317100,0.51749061,4807.8,4803.6,1.468]
[1756064317300,0.51749061,4807.9,4803.7,5.471239]
[1756064317523,0.51749061,4808.8,4803.9,3.0]
[1756064317696,0.04,4809.4,4806.4,2.08053481]
[1756064317900,0.04,4809.4,4807.5,3.0]
[1756064318142,0.04,4809.4,4807.7,3.0]
[1756064318430,0.04,4809.4,4807.9,3.0]
[1756064318646,0.51705368,4814.8,4808.4,2.07969386]
[1756064318950,0.41364294,4815.6,4810.0,3.0]
[1756064319112,1.468,4816.1,4810.1,30.0]
[1756064319313,1.72393497,4817.2,4812.5,10.37669752]
[1756064319527,4.48223092,4820.5,4817.2,20.162272]
[1756064319809,0.04,4821.4,4816.9,3.0]
[1756064320009,31.467,4821.3,4814.7,0.0095]
[1756064320257,30.0,4821.2,4814.7,0.0095]
[1756064320440,0.25313678,4821.2,4814.8,2.573]
[1756064320641,30.60421368,4821.1,4814.9,0.25825]
[1756064320845,0.4282,4821.0,4815.0,2.70565]
[1756064321053,0.4282,4821.0,4814.5,0.0184]
[1756064321054,30.4282,4821.0,4814.5,0.0184]
[1756064321359,30.4282,4821.0,4813.1,0.04]
[1756064321360,30.4282,4820.9,4813.1,0.04]
[1756064321563,1.467,4818.7,4813.1,0.04]
[1756064321761,3.0,4818.5,4814.1,0.04]
[1756064321925,0.1467,4818.6,4817.1,0.04]
[1756064322117,0.4282,4818.4,4818.1,0.04]
[1756064322320,3.0,4818.1,4814.1,0.04]
[1756064322554,30.0,4814.1,4807.2,0.0574]
[1756064322855,1.467,4814.0,4807.7,0.0486]
[1756064323058,4.581,4815.4,4807.7,0.0486]
[1756064323059,6.047,4813.9,4811.1,0.04]
[1756064323231,3.0,4813.7,4811.1,0.04]
[1756064323430,0.25288678,4814.5,4811.1,0.04]
[1756064323644,30.0,4814.4,4811.1,0.04]
[1756064323868,3.0,4816.9,4811.1,0.04]
[1756064323869,38.23452889,4814.3,4811.1,0.04]
[1756064324178,3.0,4814.1,4807.7,0.001]
[1756064324340,7.79102889,4814.3,4809.3,0.0014]
[1756064324545,0.5,4817.9,4808.1,0.3116702]
[1756064324546,0.4435,4817.1,4810.2,2.322338]
[1756064324746,0.04,4817.4,4810.4,3.0]
[1756064324985,0.04,4815.4,4812.2,0.72831346]
[1756064325273,1.466,4815.3,4813.6,1.80837693]
[1756064325489,0.04,4815.4,4813.7,1.02979074]
[1756064325785,0.04,4817.4,4814.7,1.07209571]
[1756064325981,0.04,4817.4,4815.1,1.05720464]
[1756064326184,0.04,4817.4,4815.3,1.08563761]
[1756064326334,0.04,4817.4,4814.9,1.09068569]
[1756064326533,0.04,4817.4,4815.1,4.82247421]
[1756064326764,0.04,4817.4,4815.3,4.02087867]
[1756064326982,0.04,4820.4,4815.6,1.01702644]
[1756064327182,0.01816288,4818.4,4815.9,1.807317]
[1756064327469,0.04,4820.4,4816.0,0.0618]
[1756064327843,0.001,4818.4,4816.2,3.0]
[1756064328046,1.465,4822.6,4816.2,3.0]
[1756064328047,0.10773529,4825.1,4818.4,4.377108]
[1756064328248,0.10773529,4825.1,4819.4,3.0]
[1756064328484,1.465,4827.8,4819.6,3.0]
[1756064328632,1.465,4827.8,4819.8,3.0]
[1756064328980,1.465,4827.8,4820.0,3.0]
[1756064328981,30.4435,4827.7,4820.0,3.0]
[1756064329133,32.47484363,4827.6,4820.2,3.0]
[1756064329334,1.464,4828.2,4820.3,3.164354]
[1756064329548,0.4435,4827.5,4820.5,3.0]
[1756064329849,4.578,4828.9,4820.7,3.0]
[1756064330062,0.4435,4829.2,4820.9,3.0]
[1756064330371,30.0,4829.1,4821.1,3.0]
[1756064330570,30.0,4829.1,4819.6,0.0008]
[1756064330571,10.37669752,4827.1,4819.6,0.0008]
[1756064330768,4.85484363,4829.0,4820.1,0.04]
[1756064330769,36.03867928,4827.0,4820.1,0.04]
[1756064331068,10.37669752,4824.4,4820.1,0.04]
[1756064331236,36.4855,4824.3,4820.1,0.04]
[1756064331435,7.45788869,4824.2,4820.1,0.04]
[1756064331673,6.042,4824.2,4820.1,0.04]
[1756064331836,30.4435,4824.1,4820.1,0.04]
[1756064332038,3.0,4823.3,4820.1,0.04]
[1756064332378,3.0,4823.1,4818.1,0.02]
[1756064332674,0.4435,4824.0,4818.1,0.02]
[1756064332675,3.0,4821.7,4818.1,0.02]
[1756064332835,3.0,4821.7,4816.1,0.04]
[1756064332836,3.0,4821.0,4816.1,0.04]
[1756064333037,10.37669752,4820.7,4816.1,0.04]
[1756064333239,10.37669752,4820.3,4816.1,0.04]
[1756064333539,3.0,4818.7,4814.7,1.09247019]
[1756064333746,0.15416627,4822.5,4815.6,1.09247019]
[1756064333935,0.4435,4822.4,4815.7,2.95629086]
[1756064334134,0.4435,4822.4,4815.7,0.0697]
[1756064334378,0.4435,4822.4,4815.9,3.0]
[1756064334542,2.07198839,4826.3,4815.8,14.91204186]
[1756064334543,0.04,4821.4,4816.1,3.0]
[1756064334743,0.04,4821.4,4816.5,3.0]
[1756064335043,0.144,4821.4,4820.6,0.104]
[1756064335244,0.04,4821.4,4820.4,0.064]
[1756064335448,0.04,4821.4,4821.3,0.104]
[1756064335650,0.04,4821.4,4821.3,7.064]
[1756064335849,0.04,4821.4,4821.3,6.92]
[1756064336271,0.04,4822.4,4821.4,3.0]
[1756064336473,0.4435,4828.0,4821.6,1.06691348]
[1756064336633,30.0,4827.9,4821.8,3.0]
[1756064336973,30.0,4827.9,4821.5,1.463]
[1756064336974,0.4435,4827.8,4822.1,1.07012102]
[1756064337303,0.10772952,4828.0,4822.3,4.00091372]
[1756064337480,31.462,4827.9,4822.5,1.04485028]
[1756064337683,30.4435,4827.8,4821.5,1.07559183]
[1756064337969,30.0,4827.7,4821.4,1.00229209]
[1756064338135,5.07143242,4827.6,4820.4,1.02792332]
[1756064338335,2.07035051,4830.1,4820.6,1.02840422]
[1756064338536,0.4435,4827.5,4820.8,1.09931432]
[1756064338746,1.462,4827.4,4821.0,1.04835448]
[1756064338972,1.462,4827.4,4821.2,1.0673103]
[1756064339172,30.4435,4827.3,4821.2,1.0673103]
[1756064339466,32.47484363,4827.2,4820.2,1.09098976]
[1756064339667,0.4435,4827.1,4821.1,1.09640257]
[1756064339839,30.0,4827.0,4821.1,1.09640257]
[1756064340035,0.4435,4826.9,4821.1,1.09640257]
[1756064340236,30.0,4826.8,4821.0,1.18525448]
[1756064340438,1.64436481,4826.7,4821.2,1.0673103]
[1756064340666,30.4435,4826.6,4821.2,1.0673103]
[1756064340866,0.4435,4826.5,4821.1,0.11852545]
[1756064341083,0.4435,4826.5,4821.2,0.0288]
[1756064341289,1.462,4827.4,4821.5,1.07559183]
[1756064341456,0.4435,4828.5,4821.8,1.06738864]
[1756064341651,0.4435,4828.5,4822.3,1.00091372]
[1756064341953,1.462,4829.5,4822.6,1.02794323]
[1756064342153,0.1462,4829.4,4825.8,2.07216816]
[1756064342355,0.1462,4829.4,4825.9,4.623]
[1756064342555,0.1462,4829.4,4826.0,3.0]
[1756064343161,1.462,4830.5,4826.0,3.0]
[1756064343569,0.001,4827.5,4826.1,3.42603161]
[1756064343856,0.001,4827.5,4824.8,1.07319638]
[1756064344189,0.001,4827.5,4824.6,1.03333741]
[1756064344554,0.001,4827.5,4824.8,2.07262477]
[1756064344785,0.4435,4831.6,4825.0,4.08910594]
[1756064345089,1.461,4832.3,4825.5,3.0]
[1756064345389,1.461,4832.3,4825.7,4.04450248]
[1756064345692,1.461,4832.3,4826.2,4.05750082]
[1756064345851,1.461,4832.2,4826.5,3.0]
[1756064346053,0.4435,4834.6,4826.8,3.0]
[1756064346296,0.1032,4831.7,4828.5,3.0]
[1756064346495,0.1032,4832.9,4831.5,0.1032]
[1756064346794,0.4435,4835.2,4830.6,1.461]
[1756064346955,0.4435,4835.8,4830.6,1.04622467]
[1756064347363,30.0,4835.7,4830.8,1.09512216]
[1756064347557,0.4435,4835.6,4829.6,1.04189234]
[1756064347761,1.461,4836.1,4829.8,4.08612951]
[1756064348090,0.4435,4837.2,4830.0,4.09280563]
[1756064348290,1.46,4837.6,4830.3,1.09834901]
[1756064348454,0.4435,4837.4,4830.5,4.08420198]
[1756064348680,0.001,4838.4,4831.9,1.02724143]
[1756064348911,0.001,4838.4,4833.6,10.37669752]
[1756064349211,0.001,4838.4,4834.1,1.03261163]
[1756064349396,0.001,4838.4,4834.0,4.565]
[1756064349397,0.001,4838.4,4834.3,3.0]